Cogmind - Beta 13 @@@ ROGUE MODE // 2024.06.16 @ 02:13:33 Player: CrossedViper Result: Destroyed by G-73 Enforcer with Heavy Laser Performance ------------- Evolutions (9) 4500 Regions Visited (29) 5800 Robots Destroyed (515) 2575 Value Destroyed (28314) 28314 Prototype IDs (78) 1560 Alien Tech Used (10) 2000 Bonus (18606) 18606 TOTAL SCORE: 63355 Bonus ------- Triggered High Security 500 High Alert Combat Kills 9806 Follower Combat Kills 1192 Entered Garrisons 400 Met Data Miner 300 Acquired ECA 300 Met Zhirov 300 Met Warlord at Base 500 MAIN.C Attacked Warlord 500 Warlord Defense Kills 4008 Scanned by Researcher 1000 Pursued by Intercept 1000 Friendly Fire -1200 Cogmind --------- Core Integrity 0/1600 Matter 191/300 Energy 600/600 System Corruption 0% Temperature Cool (18) Movement Core (250) Ox4 Location -1/Access Parts ------- > --- POWER (3) -------- (None) > --- PROPULSION (6) --- (None) > --- UTILITY (12) ----- Advanced Corruption Screen > --- WEAPON (4) ------- Null Cannon > --- INVENTORY (5) ---- Huge Storage Unit Peak State ------------ > --- POWER ------------ Improved Quantum Reactor Vortex Chain Reactor > --- PROPULSION ------- Improved Heavy Siege Treads Experimental Biometal Heavy Treads High-density Centrium Heavy Treads > --- UTILITY ---------- Huge Storage Unit Experimental Optical Array Experimental Targeting Computer Experimental Core Analyzer Improved Transmission Jammer Centrium Heavy Armor Plating Centrium Heavy Armor Plating Graphene Brace Thermal Barrier > --- WEAPON ----------- Enhanced Nova Cannon Sigix Shearcannon > --- INVENTORY -------- Experimental Targeting Computer Hacking Suite System Mapper Mapping Drone Bay Stealth Drone Bay Transdimensional Reconstructor Transdimensional Reconstructor Transdimensional Reconstructor Transdimensional Reconstructor High-powered Transdimensional Reconstructor Spacefold Activator Heavy Proton Cannon Enhanced Nova Cannon Null Cannon Null Cannon Omega Cannon Micro-nuke Launcher Vortex Catalyst Activator Plasma Cutter Multitool [Rating: 229] Favorites ----------- Power Heavy Antimatter Reactor Engine Cooled Ion Engine Power Core Light Neutrino Core Reactor Heavy Antimatter Reactor Propulsion Armored Treads Treads Armored Treads Leg Flexi-carbon Leg Wheel Centrium Wheel Hover Unit Cooled Gravmag System Flight Unit Impulse Thruster Array Utility High-capacity Storage Unit Device Improved Cooling System Storage High-capacity Storage Unit Processor Experimental Targeting Computer Hackware Hacking Suite Protection Centrium Heavy Armor Plating Artifact Spacefold Activator Weapon Enhanced Nova Cannon Energy Gun Heavy Dispersion Rifle Energy Cannon Enhanced Nova Cannon Ballistic Gun Subdweller Machine Gun Ballistic Cannon Hardcell Cannon Launcher Long-range Missile Launcher Special Weapon Multitool Impact Weapon Heavy Hammer Slashing Weapon Chainsword Build | -11 -10 -10 -10 -8 -8 -8 -7 -7 -7 -7 -6 -6 -6 -5 -5 -5 -5 -4 -4 -4 -4 -4 -3 -3 -3 -2 -2 -2 -1 ------- Run | Yrd Mat Min Sub Mat Gar Mat Fac Low Low Dat Pro Fac Gar Fac Upp Upp War Pro Fac Upp Upp Zhi Pro Res Tes Res Qua Sec Acc Slots Evolved 18 | . . . . 4 . . 2 . . . . 2 . 2 . . . . 2 . . . . 2 . 2 . . 2 Power 2 | . . . . . . . . . . . . . . . . . . . 1 . . . . 1 . . . . . Propulsion 4 | . . . . 2 . . . . . . . . . 2 . . . . . . . . . . . . . . . Utility 10 | . . . . 2 . . 2 . . . . 1 . . . . . . 1 . . . . 1 . 2 . . 1 Weapon 2 | . . . . . . . . . . . . 1 . . . . . . . . . . . . . . . . 1 Parts Attached 483 | 6 11 3 21 27 9 29 14 1 9 2 9 5 49 13 1 5 32 1 24 6 3 16 2 8 43 21 28 58 27 Power 32 | 1 1 . . 1 . 1 3 . . . . . 4 1 . . 1 . 2 . . 2 . 1 1 1 8 4 . Engine 11 | 1 1 . . 1 . 1 3 . . . . . 4 . . . . . . . . . . . . . . . . Core 1 | . . . . . . . . . . . . . . 1 . . . . . . . . . . . . . . . Reactor 20 | . . . . . . . . . . . . . . . . . 1 . 2 . . 2 . 1 1 1 8 4 . Propulsion 97 | 2 1 . 1 8 3 11 3 1 2 . 5 3 10 1 . . 8 1 1 3 . 2 . 2 7 4 2 6 10 Treads 67 | 2 1 . 1 7 3 11 3 1 2 . 3 . 5 1 . . 7 . 1 1 . 2 . 2 3 2 2 6 1 Leg 11 | . . . . . . . . . . . 2 3 1 . . . . 1 . 2 . . . . . . . . 2 Wheel 10 | . . . . . . . . . . . . . 4 . . . . . . . . . . . 4 2 . . . Hover 3 | . . . . . . . . . . . . . . . . . 1 . . . . . . . . . . . 2 Flight 6 | . . . . 1 . . . . . . . . . . . . . . . . . . . . . . . . 5 Utility 158 | 1 5 . 4 7 3 3 5 . 1 . 2 1 7 5 . 2 11 . 10 2 . 4 . 5 18 8 14 32 8 Device 89 | . . . . 2 1 1 2 . . . 1 1 6 3 . 1 7 . 6 2 . 1 . 5 13 5 13 16 3 Storage 10 | 1 3 . 2 . . . . . 1 . . . 1 . . . . . 1 . . . . . 1 . . . . Processor 17 | . 1 . . . . . 2 . . . . . . . . 1 4 . . . . . . . 2 1 . 6 . Hackware 7 | . . . . . 1 . . . . . . . . . . . . . 1 . . . . . . . . . 5 Protection 33 | . 1 . 2 5 1 2 1 . . . 1 . . 2 . . . . 2 . . 3 . . 2 2 1 8 . Artifact 2 | . . . . . . . . . . . . . . . . . . . . . . . . . . . . 2 . Weapon 196 | 2 4 3 16 11 3 14 3 . 6 2 2 1 28 6 1 3 12 . 11 1 3 8 2 . 17 8 4 16 9 Energy Gun 35 | . . . . 6 2 3 1 . 2 . 1 . 11 1 . . . . 2 . . 1 . . 2 3 . . . Energy Cannon 53 | . . . 3 . . 1 . . . . . . . 2 1 1 5 . 3 1 1 4 . . 8 3 3 10 7 Ballistic Gun 34 | 2 1 1 8 3 1 7 . . 2 1 . . 6 . . . 1 . 1 . . . . . . . . . . Ballistic Cannon 26 | . 2 . . . . 2 1 . 2 1 . . 2 1 . 1 1 . 3 . 1 2 1 . 4 1 . 1 . Launcher 16 | . 1 1 . 2 . 1 . . . . . 1 2 . . 1 2 . . . 1 . 1 . . 1 . 2 . Special Weapon 21 | . . . 3 . . . . . . . . . 4 1 . . 1 . 2 . . 1 . . 3 . 1 3 2 Impact Weapon 5 | . . 1 2 . . . 1 . . . . . 1 . . . . . . . . . . . . . . . . Slashing Weapon 6 | . . . . . . . . . . . 1 . 2 1 . . 2 . . . . . . . . . . . . Piercing Weapon . | . . . . . . . . . . . . . . . . . . . . . . . . . . . . . . Special Melee Weapon . | . . . . . . . . . . . . . . . . . . . . . . . . . . . . . . Unidentified Prototypes 59 | . 1 . . 2 . 1 1 . . . . . 1 2 . . 11 1 4 . . 4 . . 9 3 3 14 2 Corrupted Parts 3 | . . . . . . . . . . . 1 . . . . . 2 . . . . . . . . . . . . System Corruption 32 | . . . . . . . . . . . 8 . . . . . 24 . . . . . . . . . . . . Parts Lost 88 | . . . 1 1 5 8 3 1 3 . 8 2 10 1 . . 3 . 4 1 . . . . 2 . 1 13 21 Power 9 | . . . . . . 1 1 . . . . . 1 1 . . . . . . . . . . . . 1 4 . Propulsion 32 | . . . 1 . 3 3 1 1 1 . 5 . 2 . . . 1 . 1 . . . . . . . . 1 12 Utility 28 | . . . . 1 1 2 1 . 1 . 1 2 1 . . . 1 . 2 1 . . . . 1 . . 5 8 Weapon 19 | . . . . . 1 2 . . 1 . 2 . 6 . . . 1 . 1 . . . . . 1 . . 3 1 Highest Loss Streak 13 | . . . 1 1 3 4 1 1 1 . 5 1 3 1 . . 1 . 3 1 . . . . 2 . 1 3 13 To Critical Strikes 1 | . . . 1 . . . . . . . . . . . . . . . . . . . . . . . . . . Average Slot Usage (%) 86 | . 98 100 95 93 99 98 87 91 88 77 91 89 78 79 82 82 78 78 77 73 84 73 89 85 84 83 79 72 42 Engine 6 | . 14 14 14 9 9 9 6 7 7 7 7 6 6 1 . . . . . . . . . . . . . . . Reactor 3 | . . . . . . . . . . . . . . . . . 1 4 6 10 10 10 10 14 14 12 12 7 1 Treads 20 | . 27 28 27 34 35 35 30 29 29 30 16 11 8 17 17 17 15 14 13 9 10 13 15 17 13 6 13 12 2 Leg 1 | . . . . . . . . . . . 6 14 5 . . . . 2 2 1 10 10 10 1 . . . . 1 Device 11 | . . . . 4 9 9 16 23 17 15 14 17 21 16 17 13 13 14 11 20 21 21 21 23 22 23 19 17 4 Storage 7 | . 14 14 11 9 9 9 7 7 7 7 7 6 6 5 5 5 4 4 4 5 5 5 5 4 4 4 4 4 1 Processor 6 | . 2 . . . . . 5 15 15 15 15 13 13 8 5 8 13 19 17 5 5 5 5 4 4 5 8 13 21 Protection 7 | . 10 14 13 18 9 11 5 . . . 5 4 . 5 11 11 4 . 2 5 5 4 5 4 4 5 8 5 1 Energy Gun 2 | . . . . 10 17 3 3 . 2 . 6 6 5 6 . . . . . . . . 5 4 3 2 2 . . Energy Cannon 5 | . . . 10 1 . 1 . . . . . . . . 11 10 11 9 10 14 10 1 5 4 6 8 10 9 . Ballistic Gun 5 | . 13 13 13 5 . 11 5 . 3 . . . 5 3 . . . 4 2 . . . . . . . . . . Ballistic Cannon 2 | . 12 14 . . . . 2 7 2 1 . . . 2 5 5 4 4 4 . 4 . 4 4 1 . . . 1 Naked Turns . | . . . . . . . . . . . . . . . . . . . . . . . . . . . . . . Heaviest Build 221 | 11 58 39 61 79 66 80 82 71 71 69 69 75 73 88 94 94 133 122 205 172 174 172 169 202 203 212 221 216 142 Greatest Support 250 | 40 40 40 40 82 82 80 80 80 88 88 88 65 150 225 225 225 225 225 225 150 150 150 131 208 213 210 225 250 120 Greatest Overweight (x) 6 | . 1 . 2 1 . 1 1 1 . . 2 2 5 . . . . . 1 2 1 1 1 1 6 6 . . 1 Average Overweight (x) . | . . . . . . . . . . . . . . . . . . . . 1 1 . 1 . 2 3 . . . Largest Inventory Capacity 25 | 8 20 15 20 20 20 20 20 20 20 20 20 20 20 20 20 20 20 20 25 25 25 25 25 25 25 25 25 25 25 Average Capacity 19 | 7 10 15 13 20 20 20 20 20 20 20 20 20 20 20 20 20 20 20 24 25 25 25 25 25 25 25 25 25 11 Most Carried 25 | 4 12 15 20 20 20 20 18 17 18 15 17 19 20 20 20 20 20 20 25 25 25 25 25 25 25 25 25 25 16 Average Carried 18 | 2 8 13 13 19 17 17 15 14 16 15 15 16 18 19 20 19 19 19 23 24 24 24 25 23 24 24 24 23 6 Final Capacity 25 | 8 15 15 20 20 20 20 20 20 20 20 20 20 20 20 20 20 20 20 25 25 25 25 25 25 25 25 25 25 5 Final Carried 25 | 3 12 14 19 20 14 17 13 17 15 15 17 19 19 20 20 20 19 20 25 25 25 25 25 24 25 25 25 15 1 Class Distribution -------------------- 30% | Mutant 22% | Scavenger-Mutant 20% | Scavenger-Tank 9% | Scavenger-Gunner 5% | Tank 4% | Scavenger-Skirmisher 3% | Subdweller-Mutant Dominant Class ---------------- Mutant | -10/Materials Mutant | -10/Mines Mutant | -10/Subcaves Mutant | -8/Materials Mutant | -8/Garrison Scavenger-Mutant | -8/Materials Scavenger-Mutant | -7/Factory Scavenger-Mutant | -7/Lower Caves Scavenger-Mutant | -7/Lower Caves Scavenger-Mutant | -7/Data Miner Scavenger-Mutant | -6/Proximity Caves Scavenger-Mutant | -6/Factory Scavenger-Skirmisher | -6/Garrison Scavenger-Skirmisher | -5/Factory Scavenger-Tank | -5/Upper Caves Scavenger-Tank | -5/Upper Caves Scavenger-Gunner | -5/Warlord Scavenger-Gunner | -4/Proximity Caves Scavenger-Gunner | -4/Factory Scavenger-Tank | -4/Upper Caves Scavenger-Tank | -4/Upper Caves Scavenger-Mutant | -4/Zhirov Scavenger-Tank | -3/Proximity Caves Scavenger-Tank | -3/Research Tank | -3/Testing Mutant | -2/Research Tank | -2/Quarantine Scavenger-Tank | -2/Section 7 Scavenger-Mutant | -1/Access Resources | -11 -10 -10 -10 -8 -8 -8 -7 -7 -7 -7 -6 -6 -6 -5 -5 -5 -5 -4 -4 -4 -4 -4 -3 -3 -3 -2 -2 -2 -1 ----------- Run | Yrd Mat Min Sub Mat Gar Mat Fac Low Low Dat Pro Fac Gar Fac Upp Upp War Pro Fac Upp Upp Zhi Pro Res Tes Res Qua Sec Acc Matter Collected 10635 | 153 521 69 374 739 85 921 735 199 246 . 224 143 1370 300 57 210 369 184 580 240 161 258 171 150 714 183 406 681 192 Remotely . | . . . . . . . . . . . . . . . . . . . . . . . . . . . . . . Salvage Created 26771 | . 660 112 467 1760 958 1502 1234 57 201 . 304 354 2480 256 83 448 1363 197 2143 331 175 303 287 175 2625 814 1554 5713 215 Parts 1123 | . 44 18 39 103 45 75 54 3 10 . 14 21 90 12 3 19 43 2 85 11 8 7 11 7 98 25 44 224 8 Haulers Intercepted 12 | . 2 . . 5 . 2 . . . . . . . . . . . . 2 . . . . . . 1 . . . Recyclers Shooed 11 | . 2 1 . 1 . 2 3 . . . . . . . . . . . 1 . . . . . . 1 . . . Parts Field Recycled . | . . . . . . . . . . . . . . . . . . . . . . . . . . . . . . Retrieved Matter . | . . . . . . . . . . . . . . . . . . . . . . . . . . . . . . Parts Self-Destructed 100 | . . . 22 . . . . 3 10 . 9 . . . 3 16 . 2 . 12 7 5 11 . . . . . . Prevented 2 | . . . . . . . . . . . . . . . . . . . . 2 . . . . . . . . . Kills | -11 -10 -10 -10 -8 -8 -8 -7 -7 -7 -7 -6 -6 -6 -5 -5 -5 -5 -4 -4 -4 -4 -4 -3 -3 -3 -2 -2 -2 -1 ------- Run | Yrd Mat Min Sub Mat Gar Mat Fac Low Low Dat Pro Fac Gar Fac Upp Upp War Pro Fac Upp Upp Zhi Pro Res Tes Res Qua Sec Acc Combat Hostiles Destroyed 433 | . 15 8 7 30 23 27 21 2 6 . 5 6 24 1 2 13 29 1 32 4 11 . 5 3 38 9 17 88 6 Melee 4 | . . . . . . . 1 . . . . 2 . . . . . . . . . . . . . . . 1 . Guns 130 | . 5 2 5 21 22 20 10 . 1 . 5 . 21 1 . . . . 1 . . . 1 1 12 1 1 . . Cannons 201 | . 6 3 2 . . 6 8 2 5 . . . . . 2 9 16 . 22 3 2 . 2 2 19 2 12 74 4 AOE 73 | . 4 3 . 9 . 1 2 . . . . 4 3 . . 4 8 . 8 . 9 . 2 . 4 4 . 8 . Classes Destroyed 34 | . 6 1 2 5 3 2 . 1 . . . 1 . 1 . . 2 . 2 1 . . . . 1 1 1 3 1 Worker 23 | . . . . 6 . 3 4 . . . . 1 . . . . . . 3 . . . . . 2 . . 4 . Builder 11 | . . . . 3 . 1 1 . . . . 2 . . . . . . 3 . . . . . 1 . . . . Tunneler 4 | . . 1 . 3 . . . . . . . . . . . . . . . . . . . . . . . . . Hauler 12 | . 2 . . 5 . 2 . . . . . . . . . . . . 2 . . . . . . 1 . . . Recycler 17 | . 2 . . 2 . . 7 . . . . 1 . . . . . . 2 . . . . . 2 1 . . . Carrier 1 | . . . . . . . . . . . . . . . . . . . 1 . . . . . . . . . . Mechanic 2 | . . . . . . . . . . . . 1 . . . . . . 1 . . . . . . . . . . Operator 5 | . 2 . . . . . . . . . . . . . . . . . . . . . . . . . 2 1 . Watcher 12 | . 1 . . 3 . . 2 . . . . . . . . . . . 1 . . . . . 1 . . 4 . Swarmer 79 | . 5 8 . 4 5 . 4 . . . . 4 6 . . 6 . . 4 . 10 . . . . 3 5 15 . Cutter 3 | . . . . . . . . . . . . . . . . . . . . . . . . . . . . . 3 Saboteur 3 | . . . . . . . . . . . . . . . . . . . . . . . . . . . . 3 . Grunt 170 | . 10 . . 21 12 16 9 . 5 . 4 1 8 . . 2 10 . 8 2 . . 3 . 20 1 3 35 . Brawler 8 | . . . . . 1 . . . . . . . 1 . . 1 1 . . . . . . . 2 . . 2 . Duelist 13 | . . . . . 1 1 . . . . . . 1 . . 1 1 . . . . . 1 . 2 . 1 4 . Protector 6 | . . . . . . 1 1 . . . . . . . . . 2 . 2 . . . . . . . . . . Researcher 7 | . . . . . . . . . . . . . . . . . . . . . . . . . 1 . . 6 . Sentry 31 | . . . . 3 1 5 2 . . . 1 . 6 1 . 1 . . 2 1 1 . 1 . . 1 . 4 1 Specialist 7 | . . . . . . 2 . . . . . . . . . . 1 . 2 . . . . 2 . . . . . Hunter 24 | . . . . 1 2 1 3 1 1 . . . 1 . 2 2 3 . 3 . . . . . 2 . 2 . . Programmer 46 | . . . . . 1 . 2 . . . . 1 1 . . . 6 1 7 . . . . . 12 1 5 9 . Heavy 6 | . . . . 1 . 1 . . . . . . . . . . . . 2 . . . . 1 . . . 1 . Q-Series 2 | . . . . . . . . . . . . . . . . . . . . . . . . . . . . 2 . Behemoth 7 | . . . . . . . . . . . . . . . . . 2 . . 1 . . . . . 2 . 2 . S7 Guard 1 | . . . . . . . . . . . . . . . . . . . . . . . . . . . . 1 . Tracker 4 | . . . . . . . . . . . . . . . . . . . . . . . . . . . . 2 2 Combat Programmer 2 | . . . . . . . . . . . . . . . . . . . . . . . . . . . . 2 . Striker 3 | . . . . . . . . . . . . . . . . . . . 1 . . . . . . . . 2 . Executioner 6 | . . . . . . . . . . . . . . . . . 3 . 1 . . . . . . . . 2 . Alpha 7 2 | . . . . . . . . . . . . . . . . . . . . . . . . . . . . 2 . Fortress 1 | . . . . . . . . . . . . . . . . . . . . . . . . . . . 1 . . Artisan 3 | . . . 3 . . . . . . . . . . . . . . . . . . . . . . . . . . Subdweller 7 | . . . 7 . . . . . . . . . . . . . . . . . . . . . . . . . . Tinkerer 1 | . . . . . . . . . . . . . . . . . . . . 1 . . . . . . . . . Fireman 3 | . . . . . . . . . . . . . . 3 . . . . . . . . . . . . . . . Mutant 1 | . . . . . . . . 1 . . . . . . . . . . . . . . . . . . . . . Hydra 1 | . . . . . . . . . . . . . . . . . . . . . . . . . . 1 . . . Best Kill Streak 28 | . 4 4 2 28 5 7 5 1 4 . 3 9 3 1 2 7 10 1 21 2 10 . 4 2 6 8 5 13 3 Combat Bots Only 13 | . 4 4 2 13 5 6 5 1 4 . 3 5 3 1 2 7 10 1 9 2 10 . 4 2 6 7 5 12 3 Max Kills in Single Turn 6 | . 2 3 1 4 2 2 2 1 1 . 1 3 3 1 1 3 6 1 4 1 5 . 1 1 4 2 1 4 1 Gunslinging 1 | . . . . . 1 . . . . . . . . . . . . . . . . . . . . . . . . Exploded 6 | . 2 3 . 2 . 1 2 . . . . 3 3 . . 3 6 . 4 . 5 . 1 . 3 2 . 4 . Melee 1 | . . . . . . . 1 . . . . 1 . . . . . . . . . . . . . . . 1 . Uniques/NPCs Destroyed . | . . . . . . . . . . . . . . . . . . . . . . . . . . . . . . Combat | -11 -10 -10 -10 -8 -8 -8 -7 -7 -7 -7 -6 -6 -6 -5 -5 -5 -5 -4 -4 -4 -4 -4 -3 -3 -3 -2 -2 -2 -1 -------- Run | Yrd Mat Min Sub Mat Gar Mat Fac Low Low Dat Pro Fac Gar Fac Upp Upp War Pro Fac Upp Upp Zhi Pro Res Tes Res Qua Sec Acc Hostile Shots Fired 3363 | . 49 13 50 138 151 180 157 12 49 . 123 42 217 7 15 54 212 2 159 27 29 . 14 11 441 55 128 721 307 Missed 995 | . 15 3 24 47 41 56 52 4 13 . 43 15 66 2 6 13 76 1 52 7 8 . 4 2 97 9 36 190 113 Damage Taken 37323 | . 379 73 488 1355 1622 2386 1688 119 565 . 1156 667 2122 148 166 654 2165 15 2079 513 441 . 310 371 2745 613 1167 9165 4151 Core 3919 | . 24 7 16 68 194 221 61 . 13 . 90 68 239 . 45 51 190 15 100 34 16 . 7 . 87 39 12 943 1379 Absorbed by Shields 5168 | . . . . . . . . . . . . . 5 . . . 655 4 379 . . . . 239 1688 223 654 1321 . Reduced by Siege Mode 1019 | . . . . . . . . . . . . . 47 . . 79 203 . 54 28 . . . 17 194 . 79 318 . Redirected to Shielding 31 | . . . . 14 15 2 . . . . . . . . . . . . . . . . . . . . . . . Ignored by Resistances 5795 | . . . . . . . . . . . . . 92 . . . . . 210 . . . . . 2472 276 297 2448 . Regen/Repaired (Parts) 1541 | . 52 . . 276 . 680 . . . . . 112 . . . . 421 . . . . . . . . . . . . Core Remaining (%) 65 | 100 . . 81 . . 12 . . . . 76 . 63 . . . . 69 . . . . 86 . 93 . . 11 . Volleys Fired 1346 | . 43 8 57 104 85 105 111 10 27 . 27 4 87 20 5 24 59 3 58 16 8 27 6 10 115 28 51 236 12 Largest 4 | . 2 2 2 2 2 2 2 1 2 . 2 1 3 3 3 3 4 4 4 3 3 1 3 3 3 3 3 3 2 Hottest 370 | . 55 55 110 120 122 128 97 60 97 . 97 43 171 188 249 249 296 236 288 265 245 85 244 244 292 327 360 370 220 Shots Fired 2604 | . 78 15 87 199 163 199 155 11 40 . 43 4 168 32 15 52 162 14 181 45 19 26 14 29 298 60 105 377 13 Gun 1043 | . 35 7 55 186 163 155 93 . 26 . 35 . 108 18 . . 2 3 20 . . . 4 9 91 12 21 . . Cannon 1441 | . 35 7 29 5 . 41 62 11 14 . 8 . 5 1 15 50 158 11 158 45 17 22 8 20 205 46 84 371 13 Launcher 39 | . 8 1 . 8 . 3 . . . . . 4 1 . . 2 2 . . . 2 . 2 . . 2 . 4 . Special 81 | . . . 3 . . . . . . . . . 54 13 . . . . 3 . . 4 . . 2 . . 2 . Kinetic 785 | . 70 14 55 100 . 147 111 11 27 . 26 . 41 8 5 20 28 6 60 1 5 . 4 10 35 . . . 1 Thermal 1705 | . . . 32 99 163 52 44 . 13 . 17 . 126 24 10 30 132 8 118 44 12 26 8 19 261 58 105 292 12 Explosive 27 | . 8 1 . . . . . . . . . 4 1 . . 2 . . 3 . 2 . 2 . 2 2 . . . Electromagnetic . | . . . . . . . . . . . . . . . . . . . . . . . . . . . . . . Slashing 81 | . . . . . . . . . . . . . . . . . . . . . . . . . . . . 81 . Entropic 6 | . . . . . . . . . . . . . . . . . 2 . . . . . . . . . . 4 . Robot Hit Streak 37 | . 8 3 8 9 12 9 11 4 12 . 10 2 27 25 14 18 35 2 22 23 12 23 26 21 29 18 14 37 6 Robot Miss Streak 9 | . 5 2 2 4 3 5 9 1 2 . 3 . 9 4 2 3 2 1 3 1 1 2 1 1 3 1 2 7 1 Penetration Max 1 | . . . . . . 1 1 . . . 1 . . . . . . . . . . . . . . . . 1 . Secondary Targets 14 | . . . . 6 3 1 1 . 1 . 1 . 1 . . . . . . . . . . . . . . . . Max Gunslinging Chain 1 | . . . . 1 1 1 1 . 1 . 1 . 1 . . . . . . . . . . . . . . . . Autonomous 69 | . . . . . . . . . . . . . 69 . . . . . . . . . . . . . . . . Shots Hit Robots 1751 | . 42 8 43 115 100 118 97 8 30 . 33 11 166 32 11 37 115 2 108 27 8 24 11 26 201 36 56 278 8 Core Hits 1033 | . 31 8 18 84 38 64 45 1 9 . 16 12 87 23 6 35 56 2 76 7 11 8 12 8 88 17 23 243 5 Critical Kills 33 | . . . . . . 2 1 . . . . . . . . . 4 1 1 1 . . . 1 8 2 5 5 2 Critical Parts Destroyed 18 | . . . . 1 . 3 2 . . . . . 1 . . . 1 . . . . . . . 7 1 2 . . Critical Strikes 102 | . 1 . 1 1 7 5 17 3 . . 1 2 7 . . . 6 1 5 1 . . . 1 17 4 7 13 2 Burn 12 | . . . . . 7 . 5 . . . . . . . . . . . . . . . . . . . . . . Meltdown 21 | . . . . . . . . . . . . . . . . . 4 1 1 1 . . . . 1 2 4 5 2 Destroy 29 | . . . 1 1 . 5 . . . . . . . . . . 1 . . . . . . 1 15 2 3 . . Blast 19 | . 1 . . . . . 9 3 . . . . . . . . 1 . 4 . . . . . 1 . . . . Smash 4 | . . . . . . . 3 . . . . . 1 . . . . . . . . . . . . . . . . Sever 17 | . . . . . . . . . . . 1 2 6 . . . . . . . . . . . . . . 8 . Melee Attacks 141 | . . 3 31 . . . 7 . . . 9 18 59 6 . . 8 . . . . . . . . . . . . Impact 58 | . . 3 31 . . . 7 . . . . . 17 . . . . . . . . . . . . . . . . Slashing 83 | . . . . . . . . . . . 9 18 42 6 . . 8 . . . . . . . . . . . . Piercing . | . . . . . . . . . . . . . . . . . . . . . . . . . . . . . . Sneak Attacks 9 | . . 1 . . . . . . . . 1 1 . 6 . . . . . . . . . . . . . . . Combat Hostiles . | . . . . . . . . . . . . . . . . . . . . . . . . . . . . . . Follow-up Attacks . | . . . . . . . . . . . . . . . . . . . . . . . . . . . . . . Damage Inflicted 77218 | 5 1021 330 815 3993 2231 3309 3907 356 815 . 781 972 5554 854 375 1425 6277 101 6218 946 1183 730 831 849 8255 1959 2219 20239 668 Guns 16098 | . 224 36 516 2140 2186 2207 1176 . 360 . 549 . 2411 371 . . 17 33 414 . . . 120 210 2397 336 395 . . Cannons 42366 | . 427 78 277 141 . 589 2207 356 455 . 51 . . 32 375 1052 3961 68 3503 946 290 705 184 639 4806 977 1824 17762 661 Explosions 14178 | . 323 122 . 1712 45 461 365 . . . . 580 246 . . 373 2299 . 2237 . 893 . 527 . 956 646 . 2393 . Melee 3737 | . . 90 . . . . 149 . . . 181 392 2499 426 . . . . . . . . . . . . . . . Ramming 251 | 5 47 4 . . . 52 10 . . . . . . . . . . . 22 . . . . . 26 . . 78 7 Kinetic 14708 | . 651 114 516 2751 . 2448 2768 356 627 . 395 . 296 163 77 392 512 33 1079 40 117 . 122 361 779 . . . 111 Thermal 39679 | . . . 299 1242 2186 809 980 . 188 . 205 . 2513 265 298 660 3466 68 2916 906 173 730 182 488 6424 1313 2219 10599 550 Explosive 7016 | . 323 122 . . 45 . . . . . . 580 246 . . 373 146 . 2159 . 893 . 527 . 956 646 . . . Electromagnetic . | . . . . . . . . . . . . . . . . . . . . . . . . . . . . . . Impact 352 | . . 90 . . . . 149 . . . . . 113 . . . . . . . . . . . . . . . . Slashing 10666 | . . . . . . . . . . . 181 392 2386 426 . . . . 42 . . . . . 70 . . 7169 . Piercing . | . . . . . . . . . . . . . . . . . . . . . . . . . . . . . . Entropic 4546 | . . . . . . . . . . . . . . . . . 2153 . . . . . . . . . . 2393 . Highest Corruption 24 | . . . . . . . 3 3 3 3 11 2 3 . . . 24 1 21 21 21 21 21 . 20 . 7 17 . Average Corruption 9 | . . . . . . . 2 3 3 3 10 1 2 . . . 2 1 12 21 21 21 21 . 8 . 4 10 . Corruption Purged . | . . . . . . . . . . . . . . . . . . . . . . . . . . . . . . Corruption Blocked 16 | . . . . . . . . . . . . . . . . . . . . . . . . . . . . 7 9 Effects 457 | . . . . . . . 8 16 15 4 33 1 38 . . . . 8 25 37 41 31 30 . 47 . 20 103 . Message Errors 103 | . . . . . . . 1 4 7 . 8 . 8 . . . . 2 4 8 12 5 9 . 13 . 3 19 . Matter Fused 95 | . . . . . . . 1 3 1 1 9 1 13 . . . . . 4 13 10 10 5 . 4 . 6 14 . Heat Flow Errors 42 | . . . . . . . 2 2 1 1 3 . 5 . . . . 1 2 3 4 4 2 . 5 . 1 6 . Energy Discharges 68 | . . . . . . . 4 3 2 2 6 . 5 . . . . . 3 3 4 6 5 . 11 . 2 12 . Parts Rejected 7 | . . . . . . . . . . . . . . . . . . . 2 . . . . . 2 . 1 2 . Parts Fused 4 | . . . . . . . . . . . . . . . . . . . . 1 . . 1 . 1 . . 1 . Data Loss (minor) 49 | . . . . . . . . 3 1 . 3 . 1 . . . . 3 5 2 5 3 4 . 1 . 4 14 . Data Loss (major) 28 | . . . . . . . . . 1 . 2 . 3 . . . . . 1 1 3 1 4 . 1 . 1 10 . Misfires 23 | . . . . . . . . 1 . . 1 . 3 . . . . 2 1 1 1 . . . 3 . 2 8 . Alerts 8 | . . . . . . . . . 1 . . . . . . . . . 1 1 . 1 . . . . . 4 . Misdirections 5 | . . . . . . . . . . . . . . . . . . . . . 1 . . . 1 . . 3 . Weapon Failures 25 | . . . . . . . . . 1 . 1 . . . . . . . 2 4 1 1 . . 5 . . 10 . Overload Shots . | . . . . . . . . . . . . . . . . . . . . . . . . . . . . . . Overflow Damage 1950 | . 3 60 . 21 . 8 301 . 9 . 38 13 235 86 38 3 98 . 114 . 29 128 . . 142 19 94 502 9 Projectiles 1135 | . . . . . . 8 205 . 9 . . . . . 38 . 26 . 78 . . 128 . . 85 2 94 453 9 Explosions 322 | . 3 . . 21 . . . . . . . 13 26 . . 3 72 . 36 . 29 . . . 57 17 . 45 . Melee 493 | . . 60 . . . . 96 . . . 38 . 209 86 . . . . . . . . . . . . . 4 . Knockbacks 50 | . 3 . . . . 3 12 . 2 . 2 . . 4 . 5 1 . 4 . . . 1 1 12 . . . . Impact . | . . . . . . . . . . . . . . . . . . . . . . . . . . . . . . Kinetic 46 | . 3 . . . . 2 12 . 2 . 1 . . 4 . 5 1 . 4 . . . 1 1 10 . . . . Secondary 4 | . . . . . . 1 . . . . 1 . . . . . . . . . . . . . 2 . . . . Self-Inflicted Damage 635 | . 35 . . . . 47 112 . . . . 71 71 . . . . . . . 71 . 51 . . . . 177 . Shots 11 | . 2 . . . . 1 2 . . . . 1 1 . . . . . . . 1 . 2 . . . . 1 . Rammed 24 | 1 7 1 . . . 6 1 . . . . . . . . . . . 1 . . . . . 1 . . 4 2 Targets Rammed 30 | 1 7 1 . . . 6 2 . . . . . . . . . . . 2 . . . . . 1 . . 5 5 Kicked 3 | . . . . . . . . . . . . . . . . . . . . . . . . . . . . . 3 Crushed 3 | . . . . . . . 1 . . . . . . . . . . . 1 . . . . . . . . 1 . Highest Temperature 468 | . 51 6 . 358 126 408 218 249 174 225 223 . 424 1 . 144 199 178 367 199 178 224 58 180 334 193 460 468 45 Average Temperature 100 | . 13 3 . 72 35 94 60 117 105 115 60 . 147 1 . 63 66 74 125 90 55 95 48 121 115 97 145 128 37 Received Heat Transfer 6852 | . 150 . 96 540 567 900 504 . 171 . 482 165 534 45 . 63 149 . 184 78 27 . 60 . 774 100 84 1008 171 Effects 16 | . . . . 2 . 2 . . . . . . 5 . . . . . . . . . . . . . 4 3 . Shutdowns 3 | . . . . . . 2 . . . . . . . . . . . . . . . . . . . . 1 . . Interference 6 | . . . . . . . . . . . . . 3 . . . . . . . . . . . . . 3 . . Matter Decay 2 | . . . . . . . . . . . . . 2 . . . . . . . . . . . . . . . . Short Circuit 1 | . . . . 1 . . . . . . . . . . . . . . . . . . . . . . . . . Damage (minor) 1 | . . . . 1 . . . . . . . . . . . . . . . . . . . . . . . . . Damage (major) 3 | . . . . . . . . . . . . . . . . . . . . . . . . . . . . 3 . Siege Activations 40 | . . . . . . . . . . . . . 4 . . 2 4 . 3 2 . . . 1 10 . 3 11 . Total Turns 650 | . . . . . . . . . . . . . 86 . . 53 98 . 57 23 . . . 19 127 . 33 154 . Longest Duration 52 | . . . . . . . . . . . . . 52 . . 33 46 . 20 12 . . . 19 28 . 18 29 . Robots Corrupted . | . . . . . . . . . . . . . . . . . . . . . . . . . . . . . . Combat Hostiles . | . . . . . . . . . . . . . . . . . . . . . . . . . . . . . . Parts Fried 6 | . . 2 . . . . . . . . . . 4 . . . . . . . . . . . . . . . . Impact Corruptions 6 | . . 1 . . . . 3 . . . . . 1 . . . . . . . . . . . . . . 1 . Robots Melted 24 | . . . . . 1 . . . . . . . . . . . 4 1 1 1 . . . . 3 2 4 5 2 Combat Hostiles 24 | . . . . . 1 . . . . . . . . . . . 4 1 1 1 . . . . 3 2 4 5 2 Parts Melted 104 | . . . . . 5 3 6 . . . . . 6 1 1 1 18 1 5 5 . . . . 18 3 13 15 3 Heat Transferred 44780 | . . . 445 1738 4153 1295 1766 . 370 . 407 . 3684 775 450 1000 4313 100 3554 999 185 914 222 592 6580 968 2013 7933 324 Parts Sabotaged 6 | . . . . . . . . . . . . . . . . . . . . . . . . . 1 . 1 . 4 Parts Stolen . | . . . . . . . . . . . . . . . . . . . . . . . . . . . . . . Parts Stripped . | . . . . . . . . . . . . . . . . . . . . . . . . . . . . . . Power Chain Reactions . | . . . . . . . . . . . . . . . . . . . . . . . . . . . . . . Alert | -11 -10 -10 -10 -8 -8 -8 -7 -7 -7 -7 -6 -6 -6 -5 -5 -5 -5 -4 -4 -4 -4 -4 -3 -3 -3 -2 -2 -2 -1 ------- Run | Yrd Mat Min Sub Mat Gar Mat Fac Low Low Dat Pro Fac Gar Fac Upp Upp War Pro Fac Upp Upp Zhi Pro Res Tes Res Qua Sec Acc Peak Influence 2756 | . 397 279 . 810 2001 1943 1278 . . . . 198 1437 897 . . . . 964 . . . . 158 862 866 730 2756 1753 Initial 1653 | . . 84 . 133 513 975 837 . . . . . 138 753 . . . . 18 . . . . 74 88 473 415 375 1653 Average 767 | . 183 126 . 588 1235 1563 957 . . . . 76 683 847 . . . . 413 . . . . 99 364 684 539 1178 1642 Maximum Alert Level 5 | . 1 1 . 3 5 5 4 . . . . . 4 3 . . . . 3 . . . . . 3 3 3 5 5 Low Security (%) 16 | 100 45 85 . 14 . . . . . . . 100 5 . . . . . 51 . . . . 100 18 . . . . Level 1 14 | . 54 14 . 1 . . . . . . . . 40 . . . . . . . . . . . 50 . . 4 . Level 2 20 | . . . . 53 19 . . . . . . . 9 . . . . . 14 . . . . . 19 69 98 15 . Level 3 24 | . . . . 30 25 11 75 . . . . . 23 100 . . . . 33 . . . . . 11 30 1 40 . Level 4 12 | . . . . . 26 47 24 . . . . . 22 . . . . . . . . . . . . . . 13 28 Level 5 8 | . . . . . 29 40 . . . . . . . . . . . . . . . . . . . . . 7 71 High Security 2 | . . . . . . . . . . . . . . . . . . . . . . . . . . . . 19 . Max Security . | . . . . . . . . . . . . . . . . . . . . . . . . . . . . . . Squads Dispatched 99 | . 5 1 . 6 . 11 8 . . . . . . 2 . . . . 7 . . . . 1 12 . 4 33 9 Investigation 14 | . 4 . . 4 . 2 2 . . . . . . . . . . . 1 . . . . . . . . 1 . Extermination 18 | . . . . . . . 2 . . . . . . . . . . . 2 . . . . . 6 . 2 5 1 Reinforcement 22 | . 1 . . 2 . 5 1 . . . . . . 1 . . . . 3 . . . . 1 1 . . 4 3 Assault 36 | . . 1 . . . 4 2 . . . . . . 1 . . . . 1 . . . . . 2 . 2 20 3 Garrison 4 | . . . . . . . 1 . . . . . . . . . . . . . . . . . 3 . . . . Intercept 5 | . . . . . . . . . . . . . . . . . . . . . . . . . . . . 3 2 Searches Triggered . | . . . . . . . . . . . . . . . . . . . . . . . . . . . . . . Data Miner Redirects 2 | . . . . . . . . . . . . . . . . . . . . . . . . . . . . . 2 Construction Impeded 3 | . . . . 1 . 2 . . . . . . . . . . . . . . . . . . . . . . . Haulers Reinforced . | . . . . . . . . . . . . . . . . . . . . . . . . . . . . . . Active Scanning Responses . | . . . . . . . . . . . . . . . . . . . . . . . . . . . . . . Cargo Convoy Interrupts 1 | . . . . . . . . . . . . . . . . . . . 1 . . . . . . . . . . Stealth | -11 -10 -10 -10 -8 -8 -8 -7 -7 -7 -7 -6 -6 -6 -5 -5 -5 -5 -4 -4 -4 -4 -4 -3 -3 -3 -2 -2 -2 -1 --------- Run | Yrd Mat Min Sub Mat Gar Mat Fac Low Low Dat Pro Fac Gar Fac Upp Upp War Pro Fac Upp Upp Zhi Pro Res Tes Res Qua Sec Acc Distress Signals 29 | . . . . 5 . 2 3 . . . . . . . . . 5 . 3 . . . . . 2 4 . 1 4 Communications Jammed 119 | . . . . . . . 19 . . . . . . . . . . . . . . . . 6 13 . . 81 . Distress Signals 109 | . . . . . . . 19 . . . . . . . . . . . . . . . . . 13 . . 77 . Times Spotted 719 | . 20 10 21 44 38 40 36 1 5 . 5 10 26 8 2 10 40 1 47 4 11 . 5 3 60 11 19 171 71 Peak Tracking Total 36 | . 3 4 2 9 7 5 6 1 2 . 4 4 6 5 2 6 11 1 13 1 8 . 4 1 10 8 6 23 36 Tactical Retreats 38 | . 1 2 1 6 2 1 . . 1 . . 1 5 1 . . 3 . 1 . . . . . 1 . . 5 7 Traps | -11 -10 -10 -10 -8 -8 -8 -7 -7 -7 -7 -6 -6 -6 -5 -5 -5 -5 -4 -4 -4 -4 -4 -3 -3 -3 -2 -2 -2 -1 ------- Run | Yrd Mat Min Sub Mat Gar Mat Fac Low Low Dat Pro Fac Gar Fac Upp Upp War Pro Fac Upp Upp Zhi Pro Res Tes Res Qua Sec Acc Traps Triggered 17 | . 2 . 2 1 1 1 3 . . . . 1 2 . . . . . 2 . . . . . . . . . 2 Indirectly . | . . . . . . . . . . . . . . . . . . . . . . . . . . . . . . Trap Hack Attempts . | . . . . . . . . . . . . . . . . . . . . . . . . . . . . . . Triggered . | . . . . . . . . . . . . . . . . . . . . . . . . . . . . . . Disarmed . | . . . . . . . . . . . . . . . . . . . . . . . . . . . . . . Reprogrammed . | . . . . . . . . . . . . . . . . . . . . . . . . . . . . . . Reused . | . . . . . . . . . . . . . . . . . . . . . . . . . . . . . . Traps Extracted . | . . . . . . . . . . . . . . . . . . . . . . . . . . . . . . Installed 1 | . . 1 . . . . . . . . . . . . . . . . . . . . . . . . . . . Triggered 18 | . . . . . . . . . . . . . . . . . 16 . . . 2 . . . . . . . . Most Traps Carried 3 | . . 3 2 . . . . . . . 1 1 1 . . . . . . . . . . . . . . . . Machines | -11 -10 -10 -10 -8 -8 -8 -7 -7 -7 -7 -6 -6 -6 -5 -5 -5 -5 -4 -4 -4 -4 -4 -3 -3 -3 -2 -2 -2 -1 ---------- Run | Yrd Mat Min Sub Mat Gar Mat Fac Low Low Dat Pro Fac Gar Fac Upp Upp War Pro Fac Upp Upp Zhi Pro Res Tes Res Qua Sec Acc Machines Disabled 89 | . 5 . 2 4 6 3 8 . . . . . 5 1 . . 3 . 12 1 1 . . . 11 2 5 20 . Max in Single Turn 5 | . 1 . 1 2 2 1 5 . . . . . 1 . . . 1 . 5 1 1 . . . 2 1 1 2 . Garrison Access 2 | . . . . . . . . . . . . . . . . . . . . . . . . . . 1 1 . . Garrison Relay 8 | . . . . . 4 . . . . . . . 4 . . . . . . . . . . . . . . . . Phase Generator 1 | . . . . . 1 . . . . . . . . . . . . . . . . . . . . . . . . Machines Repaired . | . . . . . . . . . . . . . . . . . . . . . . . . . . . . . . Machines Dismantled 2 | . . . . . . . . . . . . . . . . . . . . . . . . . . . . 2 . Machines Sabotaged . | . . . . . . . . . . . . . . . . . . . . . . . . . . . . . . Overloaded Fab Kills . | . . . . . . . . . . . . . . . . . . . . . . . . . . . . . . Hacking | -11 -10 -10 -10 -8 -8 -8 -7 -7 -7 -7 -6 -6 -6 -5 -5 -5 -5 -4 -4 -4 -4 -4 -3 -3 -3 -2 -2 -2 -1 --------- Run | Yrd Mat Min Sub Mat Gar Mat Fac Low Low Dat Pro Fac Gar Fac Upp Upp War Pro Fac Upp Upp Zhi Pro Res Tes Res Qua Sec Acc Machines Accessed 59 | . 10 . 2 7 3 5 2 . . 4 . 1 1 . 1 1 4 . 2 . . 4 . . 5 . 2 4 1 Terminals 29 | . 8 . . 4 3 2 . . . . . . 1 . 1 . . . 1 . . . . . 3 . 1 4 1 Fabricators 3 | . . . . . . . 2 . . . . . . . . . . . 1 . . . . . . . . . . Repair Stations 4 | . 1 . . 1 . 2 . . . . . . . . . . . . . . . . . . . . . . . Recycling Units 2 | . 1 . . . . 1 . . . . . . . . . . . . . . . . . . . . . . . Scanalyzers 2 | . . . . 1 . . . . . . . . . . . . . . . . . . . . 1 . . . . Garrison Access 4 | . . . . 1 . . . . . . . 1 . . . . . . . . . . . . 1 . 1 . . Total Hacks 166 | . 33 . 5 20 7 11 9 . . 28 . 2 3 . 1 1 7 . 6 . . 17 . . 6 . 2 7 1 Successful 108 | . 17 . 5 8 2 9 3 . . 28 . 1 1 . 1 1 7 . 5 . . 17 . . . . 1 2 . Failed 57 | . 15 . . 12 5 2 6 . . . . 1 2 . . . . . 1 . . . . . 6 . 1 5 1 Catastrophic 9 | . 2 . . 2 . 1 1 . . . . . 1 . . . . . . . . . . . 1 . . . 1 Database Lockouts 1 | . 1 . . . . . . . . . . . . . . . . . . . . . . . . . . . . Manual 52 | . 29 . . 12 . 3 3 . . . . . . . . . 1 . 1 . . . . . 2 . 1 . . Terminals 68 | . 28 . . 12 7 4 . . . . . . 3 . 1 . . . 1 . . . . . 3 . 1 7 1 Fabricators 14 | . . . . . . . 9 . . . . . . . . . . . 5 . . . . . . . . . . Repair Stations 13 | . 3 . . 4 . 6 . . . . . . . . . . . . . . . . . . . . . . . Recycling Units 3 | . 2 . . . . 1 . . . . . . . . . . . . . . . . . . . . . . . Scanalyzers 4 | . . . . 2 . . . . . . . . . . . . . . . . . . . . 2 . . . . Garrison Access 6 | . . . . 2 . . . . . . . 2 . . . . . . . . . . . . 1 . 1 . . Terminal Hacks 78 | . 11 . 5 1 2 1 . . . 28 . . 1 . 1 1 7 . 1 . . 17 . . . . . 2 . Record 27 | . . . 4 . . . . . . 11 . . . . 1 . 6 . . . . 5 . . . . . . . Part Schematic 17 | . 4 . . . . . . . . 9 . . . . . . . . . . . 4 . . . . . . . Robot Schematic 5 | . . . . . . . . . . 5 . . . . . . . . . . . . . . . . . . . Robot Analysis 11 | . 6 . . 1 . . . . . . . . . . . . . . . . . 4 . . . . . . . Prototype ID Bank 7 | . . . . . . . . . . 3 . . . . . . . . . . . 4 . . . . . . . Open Door 4 | . . . . . . . . . . . . . . . . 1 1 . . . . . . . . . . 2 . Branch Access Points 1 | . . . . . . . . . . . . . . . . . . . 1 . . . . . . . . . . Emergency Access Points 2 | . . . . . 1 . . . . . . . 1 . . . . . . . . . . . . . . . . Alert Level 1 | . 1 . . . . . . . . . . . . . . . . . . . . . . . . . . . . Recall Assault 1 | . . . . . . 1 . . . . . . . . . . . . . . . . . . . . . . . Security Stations 1 | . . . . . 1 . . . . . . . . . . . . . . . . . . . . . . . . Derelict Proto ID Bank 1 | . . . 1 . . . . . . . . . . . . . . . . . . . . . . . . . . Fabricator Hacks 6 | . . . . . . . 2 . . . . . . . . . . . 4 . . . . . . . . . . Load Schematic 4 | . . . . . . . 2 . . . . . . . . . . . 2 . . . . . . . . . . Build 2 | . . . . . . . . . . . . . . . . . . . 2 . . . . . . . . . . Repair Station Hacks 12 | . 2 . . 4 . 6 . . . . . . . . . . . . . . . . . . . . . . . Scan Component 6 | . 1 . . 2 . 3 . . . . . . . . . . . . . . . . . . . . . . . Repair 6 | . 1 . . 2 . 3 . . . . . . . . . . . . . . . . . . . . . . . Recycling Unit Hacks . | . . . . . . . . . . . . . . . . . . . . . . . . . . . . . . Scanalyzer 2 | . . . . 2 . . . . . . . . . . . . . . . . . . . . . . . . . Insert Component 1 | . . . . 1 . . . . . . . . . . . . . . . . . . . . . . . . . Analyze 1 | . . . . 1 . . . . . . . . . . . . . . . . . . . . . . . . . Garrison Access Hacks 3 | . . . . 1 . . . . . . . 1 . . . . . . . . . . . . . . 1 . . Unlock Access 2 | . . . . 1 . . . . . . . 1 . . . . . . . . . . . . . . . . . Seal Access 1 | . . . . . . . . . . . . . . . . . . . . . . . . . . . 1 . . Unauthorized Hacks 7 | . 4 . . . . 2 1 . . . . . . . . . . . . . . . . . . . . . . Terminals 4 | . 3 . . . . 1 . . . . . . . . . . . . . . . . . . . . . . . Botnet 4 | . 3 . . . . 1 . . . . . . . . . . . . . . . . . . . . . . . Fabricators 1 | . . . . . . . 1 . . . . . . . . . . . . . . . . . . . . . . Recompile 1 | . . . . . . . 1 . . . . . . . . . . . . . . . . . . . . . . Repair Stations . | . . . . . . . . . . . . . . . . . . . . . . . . . . . . . . Recycling Units 2 | . 1 . . . . 1 . . . . . . . . . . . . . . . . . . . . . . . Tunnel 2 | . 1 . . . . 1 . . . . . . . . . . . . . . . . . . . . . . . Scanalyzers . | . . . . . . . . . . . . . . . . . . . . . . . . . . . . . . Garrison Access . | . . . . . . . . . . . . . . . . . . . . . . . . . . . . . . Data Cores Recovered 1 | . 1 . . . . . . . . . . . . . . . . . . . . . . . . . . . . Used 1 | . 1 . . . . . . . . . . . . . . . . . . . . . . . . . . . . Hacking Detections 31 | . 8 . . 6 2 4 2 . . . . 1 1 . . . . . 1 . . . . . 3 . . 2 1 Full Trace Events 11 | . 3 . . 3 1 1 1 . . . . . . . . . . . 1 . . . . . . . . 1 . Feedback Events . | . . . . . . . . . . . . . . . . . . . . . . . . . . . . . . Feedback Blocked . | . . . . . . . . . . . . . . . . . . . . . . . . . . . . . . Robot Schematics Acquired 5 | . . . . . . . . . . 5 . . . . . . . . . . . . . . . . . . . Robots Built . | . . . . . . . . . . . . . . . . . . . . . . . . . . . . . . Authchips . | . . . . . . . . . . . . . . . . . . . . . . . . . . . . . . Time . | . . . . . . . . . . . . . . . . . . . . . . . . . . . . . . Total Robot Build Rating . | . . . . . . . . . . . . . . . . . . . . . . . . . . . . . . Part Schematics Acquired 20 | . 4 . . 1 . . . . . 9 . . . . . . . . . . . 4 . . . . . 2 . Parts Built 3 | . . . . . . . . . . . . . . . . . . . 3 . . . . . . . . . . Authchips 1 | . . . . . . . . . . . . . . . . . . . 1 . . . . . . . . . . Time 157 | . . . . . . . . . . . . . . . . . . . 157 . . . . . . . . . . Total Part Build Rating 13 | . . . . . . . . . . . . . . . . . . . 13 . . . . . . . . . . Parts Repaired 6 | . 1 . . 2 . 3 . . . . . . . . . . . . . . . . . . . . . . . Time 203 | . 13 . . 76 . 114 . . . . . . . . . . . . . . . . . . . . . . . Parts Recycled . | . . . . . . . . . . . . . . . . . . . . . . . . . . . . . . Recycled Matter . | . . . . . . . . . . . . . . . . . . . . . . . . . . . . . . Retrieved Matter . | . . . . . . . . . . . . . . . . . . . . . . . . . . . . . . Retrieved Components . | . . . . . . . . . . . . . . . . . . . . . . . . . . . . . . Parts Scanalyzed 1 | . . . . 1 . . . . . . . . . . . . . . . . . . . . . . . . . Part Schematics Acquired 1 | . . . . 1 . . . . . . . . . . . . . . . . . . . . . . . . . Parts Damaged . | . . . . . . . . . . . . . . . . . . . . . . . . . . . . . . Bothacking | -11 -10 -10 -10 -8 -8 -8 -7 -7 -7 -7 -6 -6 -6 -5 -5 -5 -5 -4 -4 -4 -4 -4 -3 -3 -3 -2 -2 -2 -1 ------------ Run | Yrd Mat Min Sub Mat Gar Mat Fac Low Low Dat Pro Fac Gar Fac Upp Upp War Pro Fac Upp Upp Zhi Pro Res Tes Res Qua Sec Acc Used RIF Installer . | . . . . . . . . . . . . . . . . . . . . . . . . . . . . . . Robots Hacked . | . . . . . . . . . . . . . . . . . . . . . . . . . . . . . . Non-combat . | . . . . . . . . . . . . . . . . . . . . . . . . . . . . . . Combat . | . . . . . . . . . . . . . . . . . . . . . . . . . . . . . . Robot Hacks Applied . | . . . . . . . . . . . . . . . . . . . . . . . . . . . . . . Relay Couplers Released 38 | . . . . . 23 . . . . . . . 15 . . . . . . . . . . . . . . . . Machine Destruction 34 | . . . . . 19 . . . . . . . 15 . . . . . . . . . . . . . . . . Programmers 4 | . . . . . 4 . . . . . . . . . . . . . . . . . . . . . . . . Fabnet Peak Effective % . | . . . . . . . . . . . . . . . . . . . . . . . . . . . . . . Robots Rewired 16 | . . . . . 14 . . . . . . . 2 . . . . . . . . . . . . . . . . Allies Hacked . | . . . . . . . . . . . . . . . . . . . . . . . . . . . . . . Hacks Repelled . | . . . . . . . . . . . . . . . . . . . . . . . . . . . . . . Allies | -11 -10 -10 -10 -8 -8 -8 -7 -7 -7 -7 -6 -6 -6 -5 -5 -5 -5 -4 -4 -4 -4 -4 -3 -3 -3 -2 -2 -2 -1 -------- Run | Yrd Mat Min Sub Mat Gar Mat Fac Low Low Dat Pro Fac Gar Fac Upp Upp War Pro Fac Upp Upp Zhi Pro Res Tes Res Qua Sec Acc Total Allies 22 | . . 6 . . 14 . . . . . . . 2 . . . . . . . . . . . . . . . . Largest Group 7 | . . 6 6 . 7 7 . . . . . . 2 2 . . . . . . . . . . . . . . . Highest-Rated Group 153 | . . 116 116 . 153 153 . . . . . . 80 80 . . . . . . . . . . . . . . . Highest-Rated Ally 51 | . . 31 31 . 31 24 . . . . . . 51 51 . . . . . . . . . . . . . . . Warlord Squad Rendezvous 2 | . . . . . . . . . . . . 1 . 1 . . . . . . . . . . . . . . . Muscle 1 | . . . . . . . . . . . . 1 . . . . . . . . . . . . . . . . . Pyro 1 | . . . . . . . . . . . . . . 1 . . . . . . . . . . . . . . . Total Orders 27 | . . . . . . . . . . . . . . . . . 1 . . . . . . . . 2 12 8 4 EXPLORE 14 | . . . . . . . . . . . . . . . . . 1 . . . . . . . . . 6 4 3 RETURN 13 | . . . . . . . . . . . . . . . . . . . . . . . . . . 2 6 4 1 Ally Attacks 208 | . . . 71 . 78 47 . . . . . . . 12 . . . . . . . . . . . . . . . Total Damage 3732 | . . . 720 . 1502 1152 . . . . . . . 358 . . . . . . . . . . . . . . . Kills 52 | . . . 10 . 22 16 . . . . . . . 4 . . . . . . . . . . . . . . . Allies Corrupted 1 | . . . . . . . . . . . . . . . . . . . . . . . . . . . . . 1 Allies Melted 3 | . . . . . . . . . . . . . . . . . . . . . . . . . . 3 . . . Intel | -11 -10 -10 -10 -8 -8 -8 -7 -7 -7 -7 -6 -6 -6 -5 -5 -5 -5 -4 -4 -4 -4 -4 -3 -3 -3 -2 -2 -2 -1 ------- Run | Yrd Mat Min Sub Mat Gar Mat Fac Low Low Dat Pro Fac Gar Fac Upp Upp War Pro Fac Upp Upp Zhi Pro Res Tes Res Qua Sec Acc Robot Analysis Total 11 | . 6 . . 1 . . . . . . . . . . . . . . . . . 4 . . . . . . . Derelict Logs Recovered 9 | . . 1 2 . . . . . 1 . . . . . . 1 . 2 . 1 1 . . . . . . . . Drone Launches 57 | . . . . . . . . . . . . . . . . . 20 . . . . . . . . 6 16 9 6 Drone Recoveries 42 | . . . . . . . . . . . . . . . . . 8 . . . . . . . . 6 16 8 4 Exploration | -11 -10 -10 -10 -8 -8 -8 -7 -7 -7 -7 -6 -6 -6 -5 -5 -5 -5 -4 -4 -4 -4 -4 -3 -3 -3 -2 -2 -2 -1 ------------- Run | Yrd Mat Min Sub Mat Gar Mat Fac Low Low Dat Pro Fac Gar Fac Upp Upp War Pro Fac Upp Upp Zhi Pro Res Tes Res Qua Sec Acc Turns Passed 32701 | 88 1208 976 6109 1479 1351 1238 1265 786 788 163 1008 268 2315 349 250 754 1494 568 1006 661 893 641 622 190 1505 566 1140 2364 656 Spaces Moved 14105 | 58 631 498 2012 626 594 449 548 443 311 96 367 99 971 137 139 408 712 347 431 245 361 260 251 76 533 281 510 957 754 Core 668 | 18 . . . . . . . . . . . . . . . . . . . . . . . . . . . . 650 Treads 12494 | 40 631 498 2012 626 594 449 548 443 311 96 367 8 711 137 139 408 712 347 431 245 361 260 251 76 293 31 510 924 35 Legs 223 | . . . . . . . . . . . . 91 132 . . . . . . . . . . . . . . . . Wheels 618 | . . . . . . . . . . . . . 128 . . . . . . . . . . . 240 250 . . . Hover 11 | . . . . . . . . . . . . . . . . . . . . . . . . . . . . . 11 Flight 58 | . . . . . . . . . . . . . . . . . . . . . . . . . . . . . 58 Fastest Speed 17 | 50 160 160 160 163 163 165 170 170 167 167 166 120 120 160 160 160 160 160 160 240 240 160 240 156 156 146 176 155 17 Average Speed 173 | 125 161 160 204 171 167 169 172 170 168 167 241 189 159 160 160 160 160 160 162 240 240 212 240 175 195 161 178 165 58 Slowest Speed 320 | 160 240 160 320 252 170 246 250 250 170 167 320 260 260 160 160 160 160 160 240 320 240 240 240 240 260 260 180 180 250 Overloaded Moves 30 | . . . . . . . . . . . . . . . . . . . . . . . . . . . . . 30 Propulsion Burnouts . | . . . . . . . . . . . . . . . . . . . . . . . . . . . . . . Robots Hopped 6 | . . . . . . . . . . . . . . . . . . . . . . . . . . . . . 6 Cave-ins Triggered . | . . . . . . . . . . . . . . . . . . . . . . . . . . . . . . Teleports 6 | . . . . . . . . . . . . . . . . . . . . . . . . . . . . 4 2 Spacefolds 12 | . . . . . . . . . . . . . . . . . . . . . . . . . . . . 12 . Exploration Rate (%) 51 | 4 80 96 90 65 70 44 19 61 58 72 66 4 63 6 27 57 88 69 16 37 54 60 48 3 80 13 72 82 34 Regions Visited 29 Branch Regions 17 Pre-discovered Areas 13 | . 1 1 2 . . 1 . 1 . 1 . . . . . . 1 . . 1 1 3 . . . . . . . Known Exits Taken 12 | . . . . 1 . . 1 1 1 1 1 1 . 1 . . . . 1 1 . . . 1 . . . 1 . Unknown Exits Taken 15 | 1 1 1 1 . . 1 . . . . . . . . 1 1 1 1 . . 1 1 1 . 1 1 1 . . Scrap Searched 14 | . . . 4 . . . . 1 1 . . . . . . 2 . 3 . . 2 . 1 . . . . . . Spaces Dug 196 | . 4 11 7 11 . 1 4 . 2 . 2 1 28 . . 16 7 6 11 9 58 . . . 4 7 2 3 2 Terrain Destroyed 1004 | . 111 11 8 53 71 63 106 6 6 . 7 20 31 . 1 35 62 11 95 15 61 . 32 1 48 25 27 93 5 Melee 27 | . . . 4 . . . 4 . . . 2 1 12 . . . 4 . . . . . . . . . . . . Projectile 314 | . . . 4 4 . 15 16 6 6 . 5 . 3 . 1 9 27 11 49 15 3 . 3 1 32 12 27 60 5 AOE 663 | . 111 11 . 49 71 48 86 . . . . 19 16 . . 26 31 . 46 . 58 . 29 . 16 13 . 33 . Terrain Rammed . | . . . . . . . . . . . . . . . . . . . . . . . . . . . . . . Walls Destroyed . | . . . . . . . . . . . . . . . . . . . . . . . . . . . . . . Machines Disabled . | . . . . . . . . . . . . . . . . . . . . . . . . . . . . . . Actions | -11 -10 -10 -10 -8 -8 -8 -7 -7 -7 -7 -6 -6 -6 -5 -5 -5 -5 -4 -4 -4 -4 -4 -3 -3 -3 -2 -2 -2 -1 --------- Run | Yrd Mat Min Sub Mat Gar Mat Fac Low Low Dat Pro Fac Gar Fac Upp Upp War Pro Fac Upp Upp Zhi Pro Res Tes Res Qua Sec Acc Total 19984 | 73 737 655 3869 844 789 736 713 460 531 99 430 147 1566 224 155 466 939 352 625 280 373 327 260 116 819 358 677 1420 944 Wait 3228 | . 20 138 1703 57 28 115 23 3 180 . 13 16 290 35 11 24 73 . 79 10 . . . 12 96 9 59 103 131 Move 14045 | 58 630 497 2011 626 593 448 547 442 310 95 366 98 969 136 138 407 711 346 430 244 360 259 250 75 532 280 509 936 742 Hop 6 | . . . . . . . . . . . . . . . . . . . . . . . . . . . . . 6 Pick Up 226 | 9 15 3 30 14 . 19 3 4 . . 6 3 28 7 . 2 14 2 11 2 1 6 1 5 8 6 11 15 1 Fast Attach 183 | . 5 . 2 11 2 7 5 1 1 2 4 1 13 5 . 2 15 . 12 3 . 12 . 2 19 8 7 28 16 Attach 166 | 6 . . 5 7 6 13 7 . 7 . 4 3 22 3 . . 11 1 2 2 1 5 . 4 4 5 8 28 12 Detach 47 | . . . 1 . . 2 3 . 4 . . 2 9 . . . 4 . 4 . . 1 . . . . 1 12 4 Swap 151 | . 6 3 14 9 1 9 2 . 1 . 1 1 14 6 1 3 6 . 10 1 2 . 2 2 20 8 14 13 2 Drop 264 | . 11 1 15 16 3 12 3 . 1 2 . . 36 6 . 4 23 . 16 2 1 17 1 6 22 14 15 25 12 Fire 1346 | . 43 8 57 104 85 105 111 10 27 . 27 4 87 20 5 24 59 3 58 16 8 27 6 10 115 28 51 236 12 Melee 141 | . . 3 31 . . . 7 . . . 9 18 59 6 . . 8 . . . . . . . . . . . . Ram 2 | . . . . . . . . . . . . . . . . . . . . . . . . . . . . . 2 Kick 3 | . . . . . . . . . . . . . . . . . . . . . . . . . . . . . 3 Crush 23 | . 7 1 . . . 6 2 . . . . . . . . . . . 2 . . . . . 1 . . 4 . Escape Stasis . | . . . . . . . . . . . . . . . . . . . . . . . . . . . . . . Rewire 125 | . . . . . 71 . . . . . . 1 39 . . . 14 . . . . . . . . . . . . Trap 1 | . . 1 . . . . . . . . . . . . . . . . . . . . . . . . . . . Miscellaneous 27 | . . . . . . . . . . . . . . . . . 1 . 1 . . . . . 2 . 2 20 1 Route ------- -11/Scrapyard -10/Materials (discovered 2 exits: [*Mat] / [*Min]) -10/Mines (discovered 4 exits: [*Mat x2] / [*Exi] / *Sub) -10/Subcaves (discovered 2 exits: *Mat x2) -8/Materials (discovered 2 exits: *Fac / Gar) -8/Garrison (discovered 3 exits: *Mat x3) -8/Materials -7/Factory -7/Lower Caves -7/Lower Caves -7/Data Miner -6/Proximity Caves -6/Factory (discovered 2 exits: Fac / Gar) -6/Garrison (discovered 2 exits: *Fac x2) -5/Factory -5/Upper Caves -5/Upper Caves (discovered 2 exits: *Fac / *War) -5/Warlord -4/Proximity Caves -4/Factory (discovered 4 exits: *Upp x2 / Ext x2) -4/Upper Caves -4/Upper Caves -4/Zhirov -3/Proximity Caves -3/Research -3/Testing -2/Research (discovered 2 exits: *Acc / *Qua) -2/Quarantine -2/Section 7 -1/Access History --------- Turn | Location | Event 6 | -11/Scrapyard | Discovered new exit (range 13) 89 | -11/Scrapyard | Entered Materials 308 | -10/Materials | Build established: Mutant 817 | -10/Materials | Discovered new exit (range 16) 916 | -10/Materials | Repaired Lgt. Treads 1011 | -10/Materials | Discovered new exit (range 7) 1043 | -10/Materials | Central database locked down 1297 | -10/Materials | Entered Mines 1307 | -10/Mines | Deemed a non-threat by the Exiles lab entrance 1307 | -10/Mines | Discovered new exit (range 5) 1435 | -10/Mines | Learned location of Mines (-9) 1594 | -10/Mines | Discovered new exit (range 7) 1691 | -10/Mines | Met a Derelict testing a Signal Generator 1779 | -10/Mines | Found a hidden stash of uninstalled traps 1954 | -10/Mines | Assisted by bots powering up and referring to "LRC-V3" 2093 | -10/Mines | Discovered new exit (range 12) 2269 | -10/Mines | Discovered new exit (range 2) 2273 | -10/Mines | Entered Subcaves 2273 | -10/Subcaves | Accompanied by 6 allies 2278 | -10/Subcaves | Led the pair of lost Derelicts to an unsafe place 2852 | -10/Subcaves | Learned location of Storage (-9) 2944 | -10/Subcaves | Ambushed by angry Subdweller bent on revenge 2996 | -10/Subcaves | Shifting Twisted Machinery released Slug Cannon 3027 | -10/Subcaves | Shifting Twisted Machinery released Flamer 3117 | -10/Subcaves | Discovered new exit (range 9) 3164 | -10/Subcaves | A swath of the cavern ceiling suddenly collapsed 3591 | -10/Subcaves | Shifting Twisted Machinery released Mak. Shrapnel Gun 3596 | -10/Subcaves | Shifting Twisted Machinery released Sub. Shrapnel Launcher 3748 | -10/Subcaves | Visited 4L-MR0's lab 3783 | -10/Subcaves | Found Rainbow Chip 5398 | -10/Subcaves | Learned location of Zion (-6) 6433 | -10/Subcaves | Discovered new exit (range 12) 6440 | -10/Subcaves | Visited Clippyterm 7242 | -10/Subcaves | Build established: Subdweller-Mutant 8354 | -10/Subcaves | Build established: Mutant 8382 | -10/Subcaves | Entered Materials 8382 | -8/Materials | Evolved 4 slots: Propulsion x2, Utility x2 8663 | -8/Materials | Destroyed 13 combat bots 8947 | -8/Materials | Discovered new exit (range 8) 9342 | -8/Materials | Repaired Arm. Treads 9381 | -8/Materials | Repaired Arm. Treads 9861 | -8/Materials | Identified exit to Garrison 9861 | -8/Materials | Entered Garrison 9922 | -8/Garrison | Learned Materials security intel 10008 | -8/Garrison | Garrison Relay disabled 10050 | -8/Garrison | Triggered checkpoint 10359 | -8/Garrison | Discovered new exit (range 11) 10387 | -8/Garrison | Triggered checkpoint 10431 | -8/Garrison | Triggered checkpoint 10471 | -8/Garrison | Garrison Relay disabled 10627 | -8/Garrison | Triggered checkpoint 10645 | -8/Garrison | Garrison Relay disabled 10660 | -8/Garrison | Phase Generator disabled 10753 | -8/Garrison | Triggered checkpoint 10795 | -8/Garrison | Triggered checkpoint 10805 | -8/Garrison | Build established: Commander-Mutant 10833 | -8/Garrison | Triggered checkpoint 10874 | -8/Garrison | Discovered new exit (range 13) 10889 | -8/Garrison | Triggered checkpoint 10900 | -8/Garrison | Discovered new exit (range 5) 10931 | -8/Garrison | Triggered checkpoint 11049 | -8/Garrison | Triggered checkpoint 11064 | -8/Garrison | Garrison Relay disabled 11087 | -8/Garrison | Lost 3 allies 11103 | -8/Garrison | Lost 3 parts (2n1u) 11212 | -8/Garrison | Entered Materials 11212 | -8/Materials | Accompanied by 7 allies 11345 | -8/Materials | Repaired Arm. Treads 11384 | -8/Materials | Repaired Arm. Treads 11562 | -8/Materials | Lost 4 allies 11612 | -8/Materials | First assault squad dispatched 12042 | -8/Materials | Core integrity fell below 50% 12072 | -8/Materials | Build established: Scavenger-Mutant 12215 | -8/Materials | Repaired Arm. Treads 12397 | -8/Materials | Discovered new exit (range 10) 12408 | -8/Materials | Core integrity fell below 20% 12443 | -8/Materials | Lost 4 parts (2n1u1w) 12450 | -8/Materials | Entered Factory 12450 | -7/Factory | Evolved 2 slots: Utility x2 12852 | -7/Factory | Garrison activated, responded to threat 13250 | -7/Factory | First assault squad dispatched 13527 | -7/Factory | Discovered new exit (range 20) 13624 | -7/Factory | Identified exit to Lower Caves 13715 | -7/Factory | Entered Lower Caves 13722 | -7/Lower Caves | Met a Warlord Commander 13723 | -7/Lower Caves | Learned location of Warlord (-5) 13724 | -7/Lower Caves | Warlord Commander delivered Encrypted Comm Array 13727 | -7/Lower Caves | Found Encrypted Comm Array 13814 | -7/Lower Caves | Encountered a Warlord checkpoint 14301 | -7/Lower Caves | Discovered new exit (range 7) 14325 | -7/Lower Caves | Attacked by a delusional Derelict stockpiling parts 14499 | -7/Lower Caves | Identified exit to Lower Caves 14501 | -7/Lower Caves | Entered another Lower Caves area 14673 | -7/Lower Caves | Learned location of 1 exit from Factory 14758 | -7/Lower Caves | Spotted B-75 Beast 15279 | -7/Lower Caves | Discovered new exit (range 6) 15287 | -7/Lower Caves | Identified exit to Data Miner 15289 | -7/Lower Caves | Entered Data Miner 15290 | -7/Data Miner | Discovered new exit (range 6) 15316 | -7/Data Miner | Met Data Miner 15369 | -7/Data Miner | Acquired the access code to Warlord's prototype stash 15369 | -7/Data Miner | Learned location of Section 7 (-2) 15389 | -7/Data Miner | Received God Mode back door access code from Data Miner 15450 | -7/Data Miner | Identified exit to Proximity Caves 15452 | -7/Data Miner | Entered Proximity Caves 15573 | -6/Proximity Caves | System corruption reached 10% 15586 | -6/Proximity Caves | Lost 5 parts (3n2w) 15599 | -6/Proximity Caves | Attracted the attention of an 0b10 checkpoint 15637 | -6/Proximity Caves | Lost 3 parts (2n1u) 16365 | -6/Proximity Caves | Discovered new exit (range 9) 16383 | -6/Proximity Caves | Identified exit to Factory 16460 | -6/Proximity Caves | Entered Factory 16460 | -6/Factory | Evolved 2 slots: Utility x1, Weapon x1 16461 | -6/Factory | Identified exit to Factory 16512 | -6/Factory | Joined by Warlord Muscle squad 16611 | -6/Factory | Lost 4 allies 16715 | -6/Factory | Identified exit to Garrison 16728 | -6/Factory | Entered Garrison 16824 | -6/Garrison | Triggered checkpoint 16893 | -6/Garrison | Lost 3 parts (1n2w) 16899 | -6/Garrison | Garrison Relay disabled 17002 | -6/Garrison | Triggered checkpoint 17723 | -6/Garrison | Discovered exit to Factory (range 10) 17770 | -6/Garrison | Garrison Relay disabled 17826 | -6/Garrison | Triggered checkpoint 17894 | -6/Garrison | Garrison Relay disabled 17982 | -6/Garrison | Triggered checkpoint 18168 | -6/Garrison | Build established: Scavenger-Skirmisher 18214 | -6/Garrison | Triggered checkpoint 18250 | -6/Garrison | Garrison Relay disabled 18289 | -6/Garrison | Discovered exit to Factory (range 14) 18380 | -6/Garrison | Triggered checkpoint 18913 | -6/Garrison | Attempted to access garrison exit controls, blocked by remote lockdown 19043 | -6/Garrison | Entered Factory 19043 | -5/Factory | Accompanied by 2 allies 19043 | -5/Factory | Evolved 2 slots: Propulsion x2 19132 | -5/Factory | Discovered new exit (range 14) 19202 | -5/Factory | Identified exit to Upper Caves 19210 | -5/Factory | Joined by Warlord Pyro squad 19343 | -5/Factory | First assault squad dispatched 19392 | -5/Factory | Entered Upper Caves 19636 | -5/Upper Caves | Discovered new exit (range 5) 19642 | -5/Upper Caves | Entered another Upper Caves area 19649 | -5/Upper Caves | Discovered new exit (range 11) 19698 | -5/Upper Caves | Build established: Scavenger-Tank 19822 | -5/Upper Caves | Attracted the attention of an 0b10 checkpoint 19875 | -5/Upper Caves | Destroyed 7 combat bots 20160 | -5/Upper Caves | Learned Factory emergency access door positions 20292 | -5/Upper Caves | Discovered new exit (range 13) 20396 | -5/Upper Caves | Entered Warlord 20454 | -5/Warlord | System corruption reached 10% 20468 | -5/Warlord | System corruption cleaned by Quarantine Array 20588 | -5/Warlord | Learned Research trap positions 20590 | -5/Warlord | Learned 4 Research zone layouts 20591 | -5/Warlord | Learned Armory repair station intel 20675 | -5/Warlord | Found Prototype Special Weapon 20675 | -5/Warlord | Identified RU-N14's Throwing Claymores v3 20683 | -5/Warlord | Found RU-N14's Throwing Claymores v3 20686 | -5/Warlord | Found RU-N14's Throwing Claymores v3 20740 | -5/Warlord | Found Prototype Device 20740 | -5/Warlord | Identified Minesniffer Drone Bay 20985 | -5/Warlord | Visited the Vortex Lab 20998 | -5/Warlord | Warlord's base attacked by MAIN.C 21001 | -5/Warlord | Found Prototype Energy Cannon 21001 | -5/Warlord | Identified Vortex Cannon 21005 | -5/Warlord | Found Vortex Cannon 21008 | -5/Warlord | Found Prototype Launcher 21054 | -5/Warlord | Build established: Scavenger-Gunner 21141 | -5/Warlord | Met Warlord 21155 | -5/Warlord | Opened Warlord's prototype stash 21163 | -5/Warlord | Found Exp. Targeting Computer 21175 | -5/Warlord | Found Prototype Device 21175 | -5/Warlord | Identified Thermal Barrier 21179 | -5/Warlord | Found Prototype Processor 21179 | -5/Warlord | Identified Spectral Analyzer 21189 | -5/Warlord | Attached Rainbow Chip, gained temporary slots: Power, Propulsion, Utility, Weapon 21189 | -5/Warlord | Found Prototype Reactor 21189 | -5/Warlord | Identified Vortex Chain Reactor 21204 | -5/Warlord | Found Prototype Hackware 21348 | -5/Warlord | Warlord forces counterattacked 21453 | -5/Warlord | Build established: Scavenger-Tank 21465 | -5/Warlord | Spotted Striker 21475 | -5/Warlord | Spotted Executioner 21517 | -5/Warlord | Destroyed Executioner 21546 | -5/Warlord | Spotted B-86 Titan 21546 | -5/Warlord | Spotted Executioner 21552 | -5/Warlord | Lost 5 allies 21568 | -5/Warlord | Spotted Executioner 21574 | -5/Warlord | Destroyed Executioner 21595 | -5/Warlord | Destroyed 9 combat bots 21596 | -5/Warlord | Found Prototype Processor 21596 | -5/Warlord | Identified Exp. Core Analyzer 21599 | -5/Warlord | Spotted B-75 Beast 21622 | -5/Warlord | Spotted Executioner 21650 | -5/Warlord | Identified Vortex Catalyst Activator 21651 | -5/Warlord | Destroyed B-86 Titan 21656 | -5/Warlord | Lost 7 allies 21664 | -5/Warlord | Destroyed Executioner 21668 | -5/Warlord | Destroyed B-75 Beast 21673 | -5/Warlord | Warlord base infiltrated, sounded retreat 21689 | -5/Warlord | Destroyed 10 combat bots 21751 | -5/Warlord | Destroyed 7 combat bots 21777 | -5/Warlord | Spotted Executioner 21836 | -5/Warlord | Build established: Scavenger-Gunner 21879 | -5/Warlord | Discovered new exit (range 9) 21890 | -5/Warlord | Entered Proximity Caves 22187 | -4/Proximity Caves | Learned Research non-interactive machine intel 22201 | -4/Proximity Caves | Learned location of 1 exit from Upper Caves 22445 | -4/Proximity Caves | Discovered new exit (range 9) 22458 | -4/Proximity Caves | Entered Factory 22458 | -4/Factory | Evolved 2 slots: Power x1, Utility x1 22600 | -4/Factory | Fabricated Huge Storage Unit (x1) 22718 | -4/Factory | Fabricated Hvy. Phase Cannon (x2) 22889 | -4/Factory | Found Quantum Capacitor 22974 | -4/Factory | Spotted Executioner 22975 | -4/Factory | Cargo convoy interrupted 22975 | -4/Factory | Spotted Striker 22977 | -4/Factory | Destroyed Striker 22981 | -4/Factory | Destroyed Executioner 22994 | -4/Factory | Found Prototype Protection 22994 | -4/Factory | Identified Centrium Heavy Armor Plating 23002 | -4/Factory | Destroyed 9 combat bots 23020 | -4/Factory | System corruption reached 10% 23035 | -4/Factory | Found Centrium Heavy Armor Plating 23074 | -4/Factory | Found Centrium Heavy Armor Plating 23083 | -4/Factory | Found Centrium Heavy Armor Plating 23254 | -4/Factory | Identified exit to Upper Caves 23254 | -4/Factory | Identified exit to Extension 23446 | -4/Factory | Lost 3 parts (1n1u1w) 23458 | -4/Factory | First assault squad dispatched 23464 | -4/Factory | Entered Upper Caves 23465 | -4/Upper Caves | Identified exit to Upper Caves 23532 | -4/Upper Caves | Spotted B-86 Titan 23548 | -4/Upper Caves | Destroyed B-86 Titan 23587 | -4/Upper Caves | Learned location of Quarantine (-2) 23863 | -4/Upper Caves | Build established: Scavenger-Tank 23956 | -4/Upper Caves | Attracted the attention of an 0b10 checkpoint 24125 | -4/Upper Caves | Entered another Upper Caves area 24152 | -4/Upper Caves | Destroyed 10 combat bots 24558 | -4/Upper Caves | Attracted the attention of an 0b10 checkpoint 24994 | -4/Upper Caves | Discovered new exit (range 7) 25018 | -4/Upper Caves | Entered Zhirov 25020 | -4/Zhirov | Discovered new exit (range 3) 25049 | -4/Zhirov | Met Zhirov 25084 | -4/Zhirov | Learned location of Testing (-3) 25084 | -4/Zhirov | Learned location of Command (-1) 25098 | -4/Zhirov | Zhirov requested help retrieving the SGEMP Prototype 25125 | -4/Zhirov | Found Alien Artifact 25125 | -4/Zhirov | Identified Integrated Dissipator 25125 | -4/Zhirov | Installed Integrated Dissipator, increased core heat dissipation (+20) 25223 | -4/Zhirov | Found Alien Artifact 25315 | -4/Zhirov | Build established: Scavenger-Mutant 25659 | -4/Zhirov | Entered Proximity Caves 25942 | -3/Proximity Caves | Build established: Scavenger-Tank 26244 | -3/Proximity Caves | Discovered new exit (range 12) 26246 | -3/Proximity Caves | Attracted the attention of an 0b10 checkpoint 26281 | -3/Proximity Caves | Entered Research 26281 | -3/Research | Evolved 2 slots: Power x1, Utility x1 26282 | -3/Research | Identified exit to Testing 26284 | -3/Research | Loaded intel: 78 trap records 26285 | -3/Research | Loaded intel: 66 non-interactive machine locations 26471 | -3/Research | Entered Testing 26638 | -3/Testing | Found Prototype Processor 26639 | -3/Testing | Identified Exp. Target Analyzer 26763 | -3/Testing | Spotted Striker 26920 | -3/Testing | Found Prototype Energy Gun 26920 | -3/Testing | Identified Warp Gun 26997 | -3/Testing | Found Prototype Processor 26998 | -3/Testing | Identified Exp. Melee Analysis Suite 27043 | -3/Testing | Garrison activated, responded to threat 27416 | -3/Testing | Build established: Tank 27419 | -3/Testing | System corruption reached 10% 27471 | -3/Testing | Found Prototype Ballistic Cannon 27625 | -3/Testing | Discovered new exit (range 9) 27755 | -3/Testing | Found Prototype Energy Cannon 27755 | -3/Testing | Identified Null Cannon 27771 | -3/Testing | First assault squad dispatched 27787 | -3/Testing | Scanned by Researcher 27976 | -3/Testing | Entered Research 27976 | -2/Research | Warlord forces began assault on 0b10 27976 | -2/Research | Evolved 2 slots: Utility x2 27977 | -2/Research | Identified exit to Access 28001 | -2/Research | Distinguished unit "Viscera Detail" dispatched to help 28023 | -2/Research | Spotted B-90 Cyclops 28030 | -2/Research | Destroyed B-90 Cyclops 28056 | -2/Research | Lost 3 allies 28086 | -2/Research | Research machine network offline 28269 | -2/Research | Spotted B-90 Cyclops 28293 | -2/Research | Spotted EF-ITI(H) 28299 | -2/Research | P-80 Master assimilated allied H0-XHT(g) 28316 | -2/Research | Destroyed EF-ITI(H) 28319 | -2/Research | Destroyed B-90 Cyclops 28331 | -2/Research | Lost 7 allies 28342 | -2/Research | Destroyed 7 combat bots 28492 | -2/Research | Discovered new exit (range 14) 28542 | -2/Research | Entered Quarantine 28566 | -2/Quarantine | Found Alien Artifact 28567 | -2/Quarantine | Identified Dimensional Node Initializer 28567 | -2/Quarantine | Initialized slip node 28575 | -2/Quarantine | Found Alien Artifact 28590 | -2/Quarantine | Lost 6 allies 28612 | -2/Quarantine | Found Alien Artifact 28792 | -2/Quarantine | First assault squad dispatched 29020 | -2/Quarantine | Cryocooling Duct disabled 29035 | -2/Quarantine | Ambient heat levels rising (+20) 29035 | -2/Quarantine | Non-combat units ordered to evacuate 29377 | -2/Quarantine | Found Alien Artifact 29496 | -2/Quarantine | Spotted Fortress 29502 | -2/Quarantine | Destroyed Fortress 29530 | -2/Quarantine | Found Thermal Barrier 29541 | -2/Quarantine | Found Centrium Heavy Armor Plating 29550 | -2/Quarantine | Found Vortex Chain Reactor 29675 | -2/Quarantine | Discovered new exit (range 5) 29682 | -2/Quarantine | Entered Section 7 29837 | -2/Section 7 | Build established: Scavenger-Tank 29911 | -2/Section 7 | Identified Hpw. Transdimensional Reconstructor 29911 | -2/Section 7 | Warped through subspace 30003 | -2/Section 7 | Spotted S7 Guard 30033 | -2/Section 7 | Destroyed S7 Guard 30095 | -2/Section 7 | Found Alien Artifact 30095 | -2/Section 7 | Identified Integrated Thermoelectric Network 30095 | -2/Section 7 | Installed Integrated Thermoelectric Network, gained heat-energy exchange potential 30100 | -2/Section 7 | Identified Subatomic Replicator 30100 | -2/Section 7 | Used Subatomic Replicator to replicate Null Cannon 30168 | -2/Section 7 | Found Alien Artifact 30168 | -2/Section 7 | Identified Spacefold Activator 30445 | -2/Section 7 | Spotted Executioner 30446 | -2/Section 7 | Spotted Executioner 30466 | -2/Section 7 | Destroyed Executioner 30508 | -2/Section 7 | Scanned by Researcher 30516 | -2/Section 7 | Destroyed Executioner 30521 | -2/Section 7 | Found Prototype Processor 30521 | -2/Section 7 | Identified Exp. Core Analyzer 30528 | -2/Section 7 | Found Exp. Targeting Computer 30571 | -2/Section 7 | Found Alien Artifact 30575 | -2/Section 7 | Found Hpw. Transdimensional Reconstructor 30578 | -2/Section 7 | Found Alien Artifact 30581 | -2/Section 7 | Found Alien Artifact 30648 | -2/Section 7 | Spotted Striker 30712 | -2/Section 7 | First assault squad dispatched 30719 | -2/Section 7 | Spotted Striker 30719 | -2/Section 7 | Spotted Striker 30749 | -2/Section 7 | Destroyed Striker 30754 | -2/Section 7 | Destroyed Striker 30759 | -2/Section 7 | Found Alien Energy Cannon 30759 | -2/Section 7 | Identified Sigix Shearcannon 30847 | -2/Section 7 | Spotted Striker 30988 | -2/Section 7 | Spotted B-99 Colossus 31018 | -2/Section 7 | Destroyed B-99 Colossus 31030 | -2/Section 7 | System corruption reached 10% 31100 | -2/Section 7 | Found Alien Artifact 31100 | -2/Section 7 | Identified Integrated Reactor 31100 | -2/Section 7 | Installed Integrated Reactor, increased core energy generation (+10) 31103 | -2/Section 7 | Found Integrated Reactor 31103 | -2/Section 7 | Installed Integrated Reactor, increased core energy generation (+10) 31106 | -2/Section 7 | Found Integrated Reactor 31106 | -2/Section 7 | Installed Integrated Reactor, increased core energy generation (+10) 31139 | -2/Section 7 | Intercept squad dispatched 31171 | -2/Section 7 | Spotted Tracker 31172 | -2/Section 7 | Spotted Tracker 31196 | -2/Section 7 | Destroyed Tracker 31200 | -2/Section 7 | Destroyed Tracker 31212 | -2/Section 7 | Found Alien Artifact 31212 | -2/Section 7 | Identified LRC Energy Well 31212 | -2/Section 7 | Installed LRC Energy Well, increased energy storage capacity (+250) 31215 | -2/Section 7 | Found LRC Energy Well 31215 | -2/Section 7 | Installed LRC Energy Well, increased energy storage capacity (+250) 31218 | -2/Section 7 | Spotted Combat Programmer 31219 | -2/Section 7 | Spotted Combat Programmer 31226 | -2/Section 7 | Destroyed Combat Programmer 31230 | -2/Section 7 | Destroyed Combat Programmer 31237 | -2/Section 7 | Found Exp. Targeting Computer 31243 | -2/Section 7 | Found Prototype Device 31244 | -2/Section 7 | Identified Exp. Phase Shifter 31373 | -2/Section 7 | Destroyed 10 combat bots 31466 | -2/Section 7 | Spotted Alpha 7 31481 | -2/Section 7 | Warped through subspace 31586 | -2/Section 7 | High security lockdown imminent 31597 | -2/Section 7 | Spotted B-90 Cyclops 31612 | -2/Section 7 | Destroyed B-90 Cyclops 31665 | -2/Section 7 | Destroyed 7 combat bots 31666 | -2/Section 7 | High security lockdown engaged 31739 | -2/Section 7 | Lost 3 parts (1p1u1w) 31751 | -2/Section 7 | Identified Transdimensional Reconstructor (x4) 31751 | -2/Section 7 | Warped through subspace 31803 | -2/Section 7 | Spotted Alpha 7 31807 | -2/Section 7 | Destroyed Alpha 7 31811 | -2/Section 7 | Destroyed Alpha 7 31846 | -2/Section 7 | Spotted Executioner 31848 | -2/Section 7 | Warped through subspace 31849 | -2/Section 7 | Core integrity fell below 50% 31856 | -2/Section 7 | Destroyed 12 combat bots 31993 | -2/Section 7 | Build established: Scavenger-Mutant 32024 | -2/Section 7 | Identified Omega Cannon 32034 | -2/Section 7 | Core integrity fell below 20% 32034 | -2/Section 7 | Found Integrated Reactor 32038 | -2/Section 7 | Discovered exit to Access (range 7) 32046 | -2/Section 7 | Entered Access 32046 | -1/Access | Evolved 2 slots: Utility x1, Weapon x1 32060 | -1/Access | Installed Integrated Reactor, increased core energy generation (+10) 32266 | -1/Access | Identified System Mapper 32296 | -1/Access | First assault squad dispatched 32347 | -1/Access | Incoming assault squad redirected 32402 | -1/Access | Warped through subspace 32584 | -1/Access | Lost 6 parts (2n4u) 32597 | -1/Access | Incoming assault squad redirected 32600 | -1/Access | Intercept squad dispatched 32619 | -1/Access | Spotted Tracker 32619 | -1/Access | Spotted Tracker 32619 | -1/Access | Warped through subspace 32633 | -1/Access | Destroyed Tracker 32635 | -1/Access | Destroyed Tracker 32641 | -1/Access | Core integrity fell below 50% 32692 | -1/Access | Core integrity fell below 20% 32694 | -1/Access | Spotted B-99 Colossus 32702 | -1/Access | Destroyed by G-73 Enforcer with Heavy Laser Last Messages --------------- 32687_ I-47 Archangel unfolds itself. 32689_ Connecting with Terminal... 32689_ Adv. Corruption Screen intercepted 1% system corruption. 32689_ Acquired 81 matter. 32690_ Adv. Surge Thruster destroyed. 32690_ Impulse Thruster Array destroyed. 32690_ P-80 Master resets K-01 Serf, system corruption cleaned. 32690_ P-80 Master resets R-10 Processor, system corruption cleaned. 32691_ Critical hit (Burn: +37). 32692_ P-80 Master resets L-61 Swordsman, system corruption cleaned. 32694_ Slug penetrates Wall. 32694_ Penetrated by Slug. 32700_ U-05 Engineer builds a Wall. 32701_ Null Cannon destroyed. 32702_ P-80 Master resets G-73 Enforcer, system corruption cleaned. Map ----- +----------------------------------------------------+ | ????????????????????????????????????????????????# | | ????????????????????????????????????????????????# | | ????????????????????????????????????????????????# | | ????????????????????????????????????????????????# | | ????????????????????????????????????????????????## | | ?????????????????????????????????????????????????? | | ?????????????????????????????????????????????????? | | ?????????????????????????????????????????????????? | | ?????????????????????????????????????????????????? | | ?????????????????????????????????????????????????? | | ?????????????????????????????????????????????????? | | ?????????????????????????? ????????????????????? | | ?????????????????????????? ? ????????????????? | | ?????????????????????????? #?????????? ????? | | ?????????????????????????? #?????????? ???? | | ?????????????????????????# #?????????? #### | | ?????????????????????????# #??????????? / | | ?????????????????????????# #????????#+#?# | | ?????????????????????????# ########## ### | | ?????????????????????????# | | ????????????????????????## | | ??????????????????????? "# | | ?????????????????????????# gg | | ?????????? ?????????# ggp | | ?????????? s !! #### gl " | | ?????????? s!! k@ p pw b " " | | ?????????? s s t####+##+######+###########"" | | ?????????? s ??????# #???????#"" | | ??????????????????????# #???????### | | ??????????????????????# #?????????? | | ??????????????????????# #?????????? | | ??????????????????????# #?????????? | | ??????????????????????# #?????????? | | ??????????????????????# !! #?????????? | | ??????????????????????# !! #?????????? | | ??????????????????????# ! #?????????? | | ??????????????????????##################?????????? | | ?????????????????????????????????????????????????? | | ?????????????????????????????????????????????????? | | ?????????????????????????????????????????????????? | | ?????????????????????????????????????????????????? | | ?????????????????????????????????????????????????? | | ?????????????????????????????????????????????????? | | ?????????????????????????????????????????????????? | | ?????????????????????????????????????????????????? | | ?????????????????????????????????????????????????? | | ?????????????????????????????????????????????????? | | ?????????????????????????????????????????????????? | | ?????????????????????????????????????????????????? | | ?????????????????????????????????????????????????? | +----------------------------------------------------+ Best States ------------- Heat Dissipation 176 Coolant Potential 100 Energy Generation 109 Energy Capacity 950 Matter Stores 300 Matter Capacity 300 Sight Range 24 Terrain Scan Density 10 Jamming Range 14 Corruption Block 17 Armor Coverage 2400 Resistance: KI 20 Resistance: TH 50 Core Shielding 20 Weapon Cycling 20 Phase Shifting 20 Evasion (%) 65 Targeting Accuracy 36 Core Analysis 8 Recoil Reduction 6 Offensive Hacking 54 Authchip Count 1 Item Schematics ----------------- Huge Storage Unit | -10/Materials | Hacked Flight Unit | -10/Materials | Hacked ECM Suite | -10/Materials | Hacked Targeting Computer | -10/Materials | Hacked Multitool | -8/Materials | Scanalyzed Combat Drone Bay | -7/Data Miner | Free Lgt. Regenerative Plating | -7/Data Miner | Free Biomechanical Wings | -7/Data Miner | Free Exp. Targeting Computer | -7/Data Miner | Free Com. Ion Cannon | -7/Data Miner | Free Gyrokinetic Inverter | -7/Data Miner | Free Imp. Launcher Guidance Computer | -7/Data Miner | Free Hvy. Phase Cannon | -7/Data Miner | Free Imp. Plasma Cutter | -7/Data Miner | Free Imp. Arc Thrower | -4/Zhirov | Free Exp. Optical Array | -4/Zhirov | Free Exp. Heat Sink | -4/Zhirov | Free Assault Drone Bay | -4/Zhirov | Free Hdn. Centrium Wheel | -2/Section 7 | Archive Exp. Field Recycling Unit | -2/Section 7 | Archive Robot Schematics ------------------ X-62 Marksman | -7/Data Miner | Free O-24 Administrator | -7/Data Miner | Free Y-54 Guardian | -7/Data Miner | Free G-50 Soldier | -7/Data Miner | Free M-22 Extractor | -7/Data Miner | Free Fabricated ------------ Huge Storage Unit | x1 | -4/Factory | Authchip Hvy. Phase Cannon | x2 | -4/Factory Alien Tech Used ----------------- Integrated Dissipator Dimensional Node Initializer High-powered Transdimensional Reconstructor Integrated Thermoelectric Network Subatomic Replicator Spacefold Activator Sigix Shearcannon Integrated Reactor LRC Energy Well Transdimensional Reconstructor Achievements -------------- None Challenges ------------ None Game ------ Seed CompactGuidanceMallet Manual? 0 Play Time 03:58:33 Cumulative 825.2 hours Start 2024.06.15 @ 21:05:44 End 2024.06.16 @ 02:13:33 Sessions 1 Manual Loads 0 Difficulty Rogue Special Mode None Game No. 519 Rogue 512 Adventurer 0 Explorer 7 Win Type - Total 55 Types 20/5/19/2/0/1/6/1/1 Lore% 90 Gallery% 97 Achievement% 84 Wizard Run 0 Options --------- Layout 2 ASCII 0 Keyboard 0 Movement Numpad Keybinds 0 Fullscreen 1 Font 24/Tamsyn Map View 50x44 Zoom Use 0% Tactical HUD 1 Map Filters NONE Filters NONE Steam 1 RUN: 2a36fd9e-fbe3-4b12-b2b4-1318785be691